bitfinex-derivatives/quotes_ETHF0:USTF0_20260214
["timestamp","ask_amount","ask_price","bid_price","bid_amount"]
[1771080733105,1.19283522,2083.3,2082.4,1.1914072]
[1771080733301,1.19283522,2083.0,2082.4,1.1914072]
[1771080733607,1.19658252,2083.0,2082.4,1.1914072]
[1771080735204,1.19658252,2083.0,2081.8,0.00378451]
[1771080735205,4.825,2083.3,2082.6,1.1914072]
[1771080735405,1.19283522,2083.4,2082.9,1.4315372]
[1771080735605,1.19283522,2083.4,2082.9,0.24013]
[1771080735805,1.19283522,2083.3,2082.4,1.1914072]
[1771080736212,1.19880399,2083.3,2082.4,1.1914072]
[1771080736410,1.19283522,2083.0,2082.4,1.1914072]
[1771080738108,1.19283522,2083.2,2082.3,0.2402]
[1771080738507,1.19283522,2083.2,2082.3,1.4316072]
[1771080739907,0.00596877,2083.3,2082.3,1.4316072]
[1771080740113,8.77e-06,2083.3,2082.9,1.1914072]
[1771080742011,1.19283522,2084.0,2083.3,1.1914072]
[1771080742415,41.99283522,2083.9,2083.3,1.1914072]
[1771080742816,1.19283522,2084.1,2083.3,1.1914072]
[1771080743009,1.19752413,2084.1,2083.3,1.19519352]
[1771080743207,41.99283522,2084.0,2083.3,1.19519352]
[1771080744016,1.19283522,2083.9,2083.3,1.19519352]
[1771080744411,1.19283522,2083.9,2083.3,0.00378632]
[1771080744917,1.19283522,2083.9,2083.3,1.19519352]
[1771080745514,1.19283522,2083.9,2083.3,0.00378632]
[1771080747714,1.19283522,2083.9,2083.3,1.19519352]
[1771080748218,1.19283522,2083.9,2083.3,0.00378632]
[1771080750818,21.11583522,2083.9,2083.3,1.19519352]
[1771080751425,1.16048458,2083.8,2083.4,1.37353102]
[1771080752120,21.08348458,2083.9,2083.4,1.37353102]
[1771080752322,1.16048458,2083.9,2083.4,1.37353102]
[1771080753121,41.96517349,2084.1,2083.4,1.37353102]
[1771080753421,1.16517349,2084.1,2083.4,1.37353102]
[1771080758222,0.00468891,2084.1,2083.4,0.87353102]
[1771080758424,0.00468891,2084.1,2083.4,1.11360102]
[1771080759120,1.16048458,2084.5,2084.0,1.13346102]
[1771080759324,1.16048458,2084.5,2083.9,0.24001]
[1771080759523,1.16048458,2084.5,2083.6,1.13346102]
[1771080759726,1.16048458,2084.5,2083.7,1.37350102]
[1771080760023,1.16048458,2084.7,2084.1,1.37344102]
[1771080760222,1.1649448,2084.7,2084.1,1.37344102]
[1771080760617,19.92,2085.3,2084.1,1.37344102]
[1771080760818,0.23977,2086.0,2084.6,1.17364021]
[1771080760819,1.13630126,2086.0,2084.6,1.17364021]
[1771080761023,1.13630126,2085.8,2084.6,1.17364021]
[1771080761224,1.37613126,2085.6,2084.1,1.17364021]
[1771080761526,1.13630126,2084.9,2083.6,1.17364021]
[1771080761728,1.14034163,2084.9,2083.8,1.17364021]
[1771080761927,5.96130126,2084.8,2083.8,1.17364021]
[1771080762122,1.14034163,2084.9,2084.0,1.17364021]
[1771080762327,1.13630126,2084.8,2084.0,1.17364021]
[1771080762930,0.00404037,2084.9,2084.2,1.17364021]
[1771080763324,1.14034163,2084.9,2084.2,1.17364021]
[1771080763530,1.13630126,2084.7,2084.2,1.17364021]
[1771080763731,1.13630126,2084.7,2084.1,0.23999]
[1771080763925,1.13630126,2084.7,2084.1,1.41363021]
[1771080764118,0.00404037,2084.9,2084.1,1.41363021]
[1771080764321,1.13630126,2085.5,2084.1,1.41363021]
[1771080764523,1.13630126,2085.4,2084.1,1.41363021]
[1771080765430,1.14145702,2085.4,2084.1,1.41363021]
[1771080765625,0.00515576,2085.4,2084.1,1.41363021]
[1771080765830,0.00515576,2085.4,2084.3,1.41361021]
[1771080766032,1.14145702,2085.4,2084.3,1.41361021]
[1771080766523,1.13630126,2085.3,2084.3,1.41361021]
[1771080767831,1.13630126,2085.1,2084.3,0.23997]
[1771080768032,1.14145702,2085.4,2084.4,1.17364021]
[1771080768331,1.14145702,2085.4,2083.7,5.90497]
[1771080768332,1.14145702,2085.4,2084.2,1.17364021]
[1771080768732,1.13630126,2085.0,2084.2,1.17364021]
[1771080769231,1.13630126,2085.0,2084.2,1.41361021]
[1771080769822,1.13630126,2085.3,2084.2,1.41361021]
[1771080772039,1.13630126,2085.1,2084.2,1.41361021]
[1771080772737,1.13630126,2084.7,2084.2,1.41361021]
[1771080773639,1.13630126,2084.7,2083.3,1.17742653]
[1771080773640,1.13630126,2084.4,2083.3,1.17742653]
[1771080773935,4.825,2084.4,2083.4,1.41371021]
[1771080774140,1.13630126,2084.3,2083.4,1.41371021]
[1771080774545,1.13630126,2084.6,2083.4,1.41371021]
[1771080774841,40.8,2084.7,2084.0,1.17364021]
[1771080775632,1.13630126,2084.8,2084.0,1.17364021]
[1771080775942,1.13630126,2084.6,2083.9,1.41365021]
[1771080776241,40.8,2084.5,2083.9,1.41365021]
[1771080776936,1.13630126,2084.7,2083.9,1.41365021]
[1771080777136,4.825,2084.9,2083.9,1.41365021]
[1771080777343,1.13630126,2085.1,2083.9,1.41365021]
[1771080777642,1.13630126,2084.6,2083.9,1.41365021]
[1771080778036,4.825,2084.7,2083.9,1.41365021]
[1771080778037,5.96130126,2084.5,2083.9,1.41365021]
[1771080778236,1.13630126,2084.4,2083.9,1.41365021]
[1771080778437,1.13630126,2084.9,2083.9,1.41365021]
[1771080779443,1.13630126,2084.7,2083.9,1.41365021]
[1771080780544,1.13630126,2084.9,2083.9,1.41365021]
[1771080781643,1.17345855,2084.8,2083.9,1.41365021]
[1771080781941,1.17345855,2084.7,2083.9,1.41365021]
[1771080782444,1.17345855,2084.6,2083.9,1.41365021]
[1771080782640,1.17345855,2084.3,2083.9,0.24001]
[1771080782845,1.17345855,2084.1,2083.4,1.13425515]
[1771080783035,1.17345855,2084.1,2083.4,1.37432515]
[1771080783240,4.825,2084.2,2083.4,1.37432515]
[1771080783538,1.17345855,2085.0,2083.9,1.37426515]
[1771080784143,1.17345855,2084.8,2083.9,1.37426515]
[1771080784346,1.17345855,2084.6,2083.9,1.37426515]
[1771080784845,5.99845855,2084.6,2083.9,1.37426515]
[1771080785243,1.17345855,2084.5,2083.9,1.37426515]
[1771080785544,1.17345855,2084.5,2083.9,0.24001]
[1771080786039,1.17345855,2084.4,2083.9,0.24001]
[1771080788541,1.17345855,2084.4,2083.9,1.37426515]
[1771080788942,1.17345855,2084.3,2083.9,0.24001]
[1771080789341,1.17345855,2084.7,2083.9,1.37426515]
[1771080789744,1.17345855,2085.2,2083.9,1.37426515]
[1771080790142,1.17345855,2084.9,2083.9,1.37426515]
[1771080792147,1.17345855,2085.2,2084.4,1.37420515]
[1771080793951,1.17345855,2085.1,2084.4,1.37420515]
[1771080795654,40.8,2085.3,2084.4,1.37420515]
[1771080795856,41.97345855,2085.3,2084.4,1.37420515]
[1771080796853,1.17345855,2085.2,2084.4,1.37420515]
[1771080798053,0.00515576,2085.4,2085.0,1.13425515]
[1771080798354,0.00515576,2085.4,2085.0,1.13950056]
[1771080798742,1.17861431,2085.4,2084.7,1.13425515]
[1771080799051,1.17861431,2085.4,2084.6,0.23993]
[1771080799052,0.00515576,2085.4,2084.9,1.13425515]
[1771080799654,0.00515576,2085.4,2084.9,1.13836983]
[1771080799850,1.17861431,2085.4,2084.9,0.00411468]
[1771080801350,1.17345855,2085.1,2084.3,1.13425515]
[1771080802454,1.17345855,2085.1,2084.3,1.139367]
[1771080802654,1.17345855,2085.0,2084.3,1.139367]
[1771080803848,1.17345855,2085.2,2084.3,1.139367]
[1771080804446,1.17345855,2085.0,2084.3,1.139367]
[1771080804653,1.17345855,2084.9,2084.3,0.00511185]
[1771080805253,5.99845855,2084.9,2084.3,0.00511185]
[1771080805457,5.99845855,2084.8,2084.3,0.00511185]
[1771080805756,1.17345855,2084.7,2083.9,1.13425515]
[1771080806258,1.17345855,2084.7,2084.0,1.37425515]
[1771080806651,1.17345855,2084.7,2084.0,1.37866131]
[1771080806853,5.99845855,2084.9,2084.0,1.37866131]
[1771080807157,1.17345855,2084.8,2084.0,1.37866131]
[1771080807352,5.99845855,2085.0,2084.0,1.37866131]
[1771080807649,3.29875566,2085.9,2084.9,1.13425515]
[1771080807854,0.09724255,2086.4,2086.2,1.13425515]
[1771080808055,0.09724255,2086.4,2085.7,1.13425515]
[1771080808249,0.26235403,2086.3,2085.7,1.13425515]
[1771080808556,0.26235403,2086.3,2085.1,1.13425515]
[1771080808756,0.26701251,2086.3,2085.1,1.1395246]
[1771080808955,0.8515354,2085.9,2085.1,1.1395246]
[1771080809151,0.8515354,2086.0,2085.1,1.1395246]
[1771080809661,0.8515354,2085.7,2085.1,1.1395246]
[1771080809959,0.8515354,2085.7,2085.1,0.00526945]
[1771080810361,0.84717217,2085.6,2084.4,1.13425515]
[1771080810562,0.84717217,2085.3,2084.4,1.13425515]
[1771080811463,0.84717217,2085.3,2084.4,1.13928037]
[1771080811858,0.85115315,2085.2,2084.4,1.13928037]
[1771080812255,0.85115315,2086.0,2084.6,1.34048525]
[1771080812459,0.85115315,2086.0,2084.8,1.34048525]
[1771080812858,41.65115315,2086.0,2084.8,1.34048525]
[1771080813161,0.00465848,2086.3,2085.0,1.34048525]
[1771080813162,0.88607089,2086.2,2085.0,1.34048525]
[1771080813462,0.00465848,2086.3,2085.2,1.34048525]
[1771080814064,0.00465848,2086.3,2085.4,1.34048525]
[1771080814253,0.88517972,2086.3,2085.5,1.58031525]
[1771080814454,0.00465848,2086.3,2085.5,1.58031525]
[1771080814664,2.63153725,2086.3,2085.5,1.58031525]
[1771080815063,0.00465848,2086.3,2085.5,1.58031525]
[1771080816861,3.981,2087.1,2085.3,5.90045]
[1771080816862,1.02661896,2087.4,2086.2,0.23975]
[1771080817060,1.02661896,2087.4,2086.2,1.58023525]
[1771080817265,1.02661896,2087.2,2086.0,1.34048525]
[1771080817464,1.02661896,2087.1,2086.0,1.34048525]
[1771080817663,1.02641393,2086.7,2086.0,1.34523614]
[1771080818360,1.02641393,2086.7,2085.6,1.34048525]
[1771080818669,1.07760822,2086.4,2085.6,1.34048525]
[1771080818870,1.07760822,2086.4,2085.4,1.34048525]
[1771080819167,1.07760822,2086.1,2085.0,1.34048525]
[1771080819467,1.07760822,2086.0,2084.9,1.58038525]
[1771080819661,1.0719347,2085.7,2084.9,1.58573111]
[1771080820164,2.62687877,2085.5,2084.9,1.58573111]
[1771080820364,1.07779837,2085.5,2084.9,1.58573111]
[1771080820867,0.00586367,2085.5,2084.9,1.58573111]
[1771080821557,1.1346084,2087.1,2086.0,1.29822562]
[1771080821766,1.1346084,2087.1,2086.2,1.29822562]
[1771080822264,2.62687877,2087.0,2086.2,1.29822562]
[1771080822465,2.63277533,2087.0,2086.2,1.29822562]
[1771080822660,0.00589656,2087.0,2086.2,1.29822562]
[1771080822965,1.14682948,2087.0,2086.2,1.29822562]
[1771080823264,2.62687877,2086.8,2086.2,1.29822562]
[1771080823866,2.62687877,2086.7,2086.2,1.29822562]
[1771080824061,1.13481759,2086.9,2085.9,1.29822562]
[1771080824267,1.13481759,2086.7,2085.9,1.29822562]
[1771080824767,2.62687877,2086.6,2085.9,1.29822562]
[1771080824969,1.16936554,2086.6,2085.5,1.29822562]
[1771080825163,2.62687877,2086.2,2085.5,1.29822562]
[1771080825368,14.462,2086.8,2085.5,1.29822562]
[1771080825369,1.16936554,2086.1,2085.5,1.29822562]
[1771080825557,41.96936554,2086.1,2085.5,1.29822562]
[1771080825764,1.16318118,2086.4,2085.4,1.29822562]
[1771080825964,1.16318118,2086.4,2085.6,1.29822562]
[1771080826670,1.33689813,2086.7,2085.8,1.29822562]
[1771080827366,1.33689813,2086.9,2086.2,1.29822562]
[1771080827572,1.33689813,2086.9,2085.4,5.90015]
[1771080827573,1.33689813,2086.9,2086.3,1.53796562]
[1771080827760,0.00589656,2087.0,2086.3,1.53796562]
[1771080828067,40.80589656,2087.0,2086.3,1.53796562]
[1771080828273,1.33689813,2086.9,2085.8,1.29822562]
[1771080828871,1.33689813,2086.8,2085.8,1.29822562]
[1771080829065,1.33689813,2086.8,2086.0,1.29822562]
[1771080829368,0.00589656,2087.0,2086.2,1.29822562]
[1771080829571,1.34279469,2087.0,2086.2,1.29822562]
[1771080830465,1.34279469,2087.0,2086.1,0.23976]
[1771080830666,1.34279469,2087.0,2086.1,1.53798562]
[1771080831469,1.33689813,2086.8,2086.1,1.53798562]
[1771080833466,1.33689813,2086.8,2085.8,1.29822562]
[1771080834273,19.894,2086.7,2085.8,1.29822562]
[1771080834470,1.33689813,2086.6,2085.8,1.29822562]
[1771080836175,1.33689813,2086.6,2085.5,0.23982]
[1771080836767,19.894,2086.5,2085.5,0.23982]
[1771080836972,19.894,2086.5,2084.9,0.00534586]
[1771080836973,1.33689813,2086.4,2084.9,0.24523586]
[1771080837168,1.33689813,2086.4,2085.0,1.29822562]
[1771080837570,1.33689813,2086.4,2085.1,0.23988]
[1771080837770,1.33689813,2086.2,2085.2,1.29822562]
[1771080838176,1.33689813,2086.2,2085.3,1.53807562]
[1771080838677,1.33689813,2086.0,2085.3,1.53807562]
[1771080838873,1.33689813,2086.0,2085.3,0.23985]
[1771080839280,1.33689813,2086.0,2085.3,1.53807562]
[1771080843386,1.40455398,2086.2,2085.3,1.53807562]
[1771080844076,1.40455398,2086.8,2086.0,1.35896673]
[1771080844278,1.40455398,2086.8,2086.1,1.59872673]
[1771080844581,1.40455398,2086.8,2085.7,1.59877673]
[1771080845781,1.40455398,2086.6,2085.7,1.59877673]
[1771080846181,1.40455398,2086.6,2085.7,0.23981]
[1771080846380,1.40455398,2086.6,2085.4,1.35896673]
[1771080846579,1.40455398,2086.6,2085.0,1.35896673]
[1771080846778,1.40455398,2086.6,2085.2,1.35896673]
[1771080847182,1.40455398,2086.6,2085.1,0.23986]
[1771080847582,1.40455398,2086.6,2085.1,1.59882673]
[1771080847790,1.40455398,2086.4,2085.1,1.59882673]
[1771080847987,1.40455398,2086.4,2085.1,0.23986]
[1771080848187,1.40455398,2086.4,2085.1,1.59882673]
[1771080849090,1.40455398,2086.4,2085.1,0.23986]
[1771080849382,1.40455398,2086.4,2085.1,1.59882673]
[1771080849579,1.40455398,2086.2,2085.1,1.59882673]
[1771080849783,42.20455398,2086.2,2085.1,1.59882673]
[1771080851082,1.40455398,2086.1,2085.1,1.59882673]
[1771080854291,1.40455398,2086.1,2085.1,0.23986]
[1771080854888,1.40455398,2086.1,2085.2,1.35896673]
[1771080855093,1.40455398,2086.1,2085.1,0.23986]
[1771080855094,1.40455398,2085.9,2085.1,0.23986]
[1771080855596,1.40455398,2085.9,2085.1,1.59882673]
[1771080855992,1.40455398,2085.7,2085.1,1.59882673]
[1771080858593,1.40455398,2085.7,2085.1,0.23986]
[1771080860299,1.40455398,2085.7,2084.9,0.00534586]
[1771080861298,1.40455398,2085.5,2084.9,0.00534586]
[1771080861499,1.40455398,2085.4,2084.9,1.60420259]
[1771080862198,1.40455398,2085.4,2084.9,0.24523586]
[1771080862399,1.40455398,2085.4,2084.5,1.35896673]
[1771080862600,1.40455398,2085.4,2084.6,1.59889673]
[1771080863300,1.40455398,2085.4,2084.6,1.60474185]
[1771080863598,10.31140419,2085.5,2084.6,1.60474185]
[1771080864197,1.40455398,2085.4,2084.6,1.60474185]
[1771080870302,1.40455398,2085.4,2084.6,0.24577512]
[1771080870506,1.40455398,2085.4,2084.6,1.60474185]
[1771080874504,1.40455398,2085.4,2084.6,0.24577512]
[1771080875201,1.26700192,2085.2,2084.6,0.24577512]
[1771080875802,1.26700192,2085.1,2084.6,1.53972012]
[1771080878006,1.26700192,2085.1,2084.6,0.24577512]
[1771080879211,1.26700192,2085.1,2084.6,1.53972012]
[1771080882914,1.26700192,2085.1,2084.6,0.24577512]
[1771080886623,1.26700192,2085.1,2084.3,1.34159956]
[1771080887219,1.26700192,2085.1,2084.3,8.75569533]
[1771080887724,1.26700192,2085.1,2084.3,8.75912221]
[1771080888019,1.26700192,2085.1,2084.3,0.00342688]
[1771080891421,1.26700192,2085.1,2084.1,0.23999]
[1771080892525,1.26700192,2085.1,2084.1,0.24391956]
[1771080892728,1.31944917,2084.9,2084.1,0.24391956]
[1771080892925,1.31944917,2084.9,2084.1,1.58551912]
[1771080893521,1.31944917,2084.7,2084.1,1.58551912]
[1771080893724,1.31944917,2084.5,2084.1,1.58551912]
[1771080894122,21.22644917,2084.6,2084.1,1.58551912]
[1771080894522,1.31944917,2084.6,2084.1,1.58551912]
[1771080894729,15.812,2084.6,2084.1,1.58551912]
[1771080895628,15.04244917,2085.1,2084.1,1.58551912]
[1771080896425,1.31944917,2085.0,2084.1,1.58551912]
[1771080897625,1.31944917,2085.0,2084.1,1.34552912]
[1771080901325,1.31944917,2085.0,2084.1,0.00392956]
[1771080901831,1.31944917,2085.0,2084.1,1.23748339]
[1771080902634,1.2895971,2085.2,2084.1,1.23748339]
[1771080903632,21.1975971,2085.2,2084.2,1.23355383]
[1771080904533,1.2895971,2085.2,2084.2,1.23355383]
[1771080904734,61.9975971,2085.3,2084.2,1.23355383]
[1771080905031,1.2895971,2085.2,2084.2,1.23355383]
[1771080905429,1.2895971,2085.2,2084.2,8.6476496]
[1771080905631,1.2895971,2085.2,2084.5,1.23355383]
[1771080906133,60.708,2085.3,2084.5,1.23355383]
[1771080906433,61.9975971,2085.3,2084.5,1.23355383]
[1771080906633,1.2895971,2085.2,2084.5,1.23355383]
[1771080908131,40.8,2085.3,2084.5,1.23355383]
[1771080908330,21.1975971,2085.4,2084.5,1.23355383]
[1771080908635,13.0985971,2085.4,2084.5,1.23355383]
[1771080909636,1.29544731,2085.5,2084.5,1.23355383]
[1771080910635,0.00585021,2085.5,2084.5,1.23355383]
[1771080910832,0.00585021,2085.5,2084.7,1.23355383]
[1771080912430,0.00585021,2085.5,2084.9,1.23355383]
[1771080913125,2.1e-07,2085.5,2084.9,1.23355383]
[1771080913332,1.2895971,2086.6,2085.2,1.47341383]
[1771080913532,1.2895971,2086.4,2085.2,1.47341383]
[1771080913737,1.2895971,2086.3,2085.2,1.47341383]
[1771080914326,1.29463402,2086.3,2085.2,1.47341383]
[1771080914732,1.2895971,2086.1,2085.2,1.47341383]
[1771080915935,0.00503692,2086.3,2085.2,1.47341383]
[1771080916436,1.2895971,2086.7,2085.8,1.23355383]
[1771080916933,1.2895971,2086.7,2085.7,1.47335383]
[1771080917528,1.29481087,2086.7,2085.7,1.47739048]
[1771080918338,1.2895971,2086.5,2085.7,1.47739048]
[1771080918637,2.09450582,2087.5,2085.7,1.47739048]
[1771080918638,1.2895971,2087.4,2086.4,1.23355383]
[1771080918834,1.2895971,2087.4,2086.5,0.23971]
[1771080919338,1.2895971,2087.4,2086.5,1.47326383]
[1771080919738,1.2895971,2087.2,2086.5,1.47326383]
[1771080921040,1.2895971,2087.2,2086.5,0.23971]
[1771080921439,1.2895971,2087.1,2086.5,0.23971]
[1771080922539,1.2895971,2087.3,2086.5,1.47326383]
[1771080923036,1.2895971,2087.2,2086.5,1.47326383]
[1771080923539,1.2895971,2087.1,2086.5,1.47326383]
[1771080924130,1.2895971,2087.1,2086.5,0.23971]
[1771080924636,0.00543036,2087.4,2086.5,1.47326383]
[1771080924837,1.29502746,2087.4,2086.5,1.47326383]
[1771080925238,1.2895971,2087.2,2086.5,1.47326383]
[1771080925641,0.00543036,2087.4,2086.5,1.47326383]
[1771080926444,1.29502746,2087.4,2086.5,1.47326383]
[1771080927635,0.00543036,2087.4,2086.5,1.47326383]
[1771080927938,1.29502746,2087.4,2086.5,1.47326383]
[1771080928848,1.2895971,2087.3,2086.5,1.47326383]
[1771080929639,1.2895971,2087.2,2086.5,1.47326383]
[1771080930036,1.2895971,2087.2,2086.5,0.23971]
[1771080930439,1.2895971,2087.2,2086.5,1.47326383]
[1771080930947,1.2895971,2087.3,2086.5,1.47326383]
[1771080931147,42.0895971,2087.3,2086.5,1.47326383]
[1771080931447,1.29480118,2087.2,2086.5,1.47326383]
[1771080931646,1.29480118,2088.1,2087.3,1.19684943]
[1771080931851,1.29480118,2088.7,2087.7,1.19684943]
[1771080932150,1.29480118,2089.3,2088.3,1.43634943]
[1771080932341,1.29480118,2089.1,2087.9,1.19684943]
[1771080932649,1.29480118,2088.7,2087.5,1.19684943]
[1771080932948,1.29480118,2088.5,2087.5,1.19684943]
[1771080933149,1.29480118,2088.3,2087.5,1.19684943]
[1771080933346,2.09450582,2088.8,2087.2,1.19684943]
[1771080933347,1.29480118,2088.1,2087.2,1.19684943]
[1771080933542,1.29480118,2088.3,2087.4,1.19684943]
[1771080933756,1.29480118,2089.0,2087.8,1.19684943]
[1771080934048,1.29480118,2089.0,2088.2,1.19684943]
[1771080934350,1.29480118,2089.0,2087.6,5.89391]
[1771080934351,1.29938097,2089.1,2088.4,1.19684943]
[1771080934546,1.29938097,2089.1,2088.0,1.19684943]
[1771080934747,1.29938097,2089.1,2087.7,1.19684943]
[1771080935055,1.29938097,2089.1,2087.5,1.19684943]
[1771080935349,1.29480118,2088.7,2087.5,1.19684943]
[1771080935745,1.29480118,2088.7,2087.4,1.20199231]
[1771080937449,1.29480118,2088.5,2087.4,1.20199231]
[1771080937652,1.29480118,2088.3,2087.4,1.20199231]
[1771080937952,1.29480118,2088.2,2087.4,1.20199231]
[1771080939153,40.8,2088.4,2087.4,1.44159231]
[1771080939357,42.09480118,2088.4,2087.4,1.44159231]
[1771080939549,1.29480118,2088.3,2087.4,1.44159231]
[1771080940456,1.29480118,2088.3,2087.4,0.00514288]
[1771080941548,1.20874491,2088.1,2087.0,1.19684943]
[1771080941753,1.20874491,2088.1,2086.8,1.44018822]
[1771080942059,1.20874491,2088.0,2086.8,1.44018822]
[1771080942454,1.20874491,2088.0,2086.8,1.44495948]
[1771080942654,15.17274491,2088.0,2086.8,1.44495948]
[1771080942957,1.20874491,2088.0,2086.8,1.44495948]
[1771080943154,10.76074491,2088.2,2087.4,1.20050822]
[1771080943455,1.20874491,2088.1,2087.4,1.20050822]
[1771080943850,40.8,2088.4,2087.6,1.20050822]
[1771080943851,1.20874491,2088.3,2087.6,1.20050822]
[1771080945758,1.20874491,2088.3,2087.2,1.20050822]
[1771080946060,1.20874491,2088.3,2087.4,1.20050822]
[1771080946258,21.09074491,2088.3,2087.4,1.20050822]
[1771080946458,1.20874491,2088.2,2087.4,1.20050822]
[1771080948963,1.20874491,2088.2,2087.3,0.23962]
[1771080949164,1.20874491,2088.2,2087.3,1.44012822]
[1771080949361,1.20874491,2088.1,2087.3,1.44012822]
[1771080949764,42.00874491,2088.4,2087.3,1.44012822]
[1771080949969,1.20874491,2088.5,2087.9,1.20050822]
[1771080950158,1.20874491,2088.7,2087.9,1.20050822]
[1771080950366,1.20874491,2088.5,2087.9,1.20050822]
[1771080950564,1.20874491,2088.5,2087.8,0.23956]
[1771080950867,1.20874491,2088.5,2087.6,1.20050822]
[1771080951269,1.20874491,2088.5,2087.3,1.20050822]
[1771080952365,1.20874491,2088.5,2087.4,0.23961]
[1771080952565,21.08874491,2088.4,2087.5,1.20050822]
[1771080952764,1.20874491,2088.4,2087.5,1.20050822]
[1771080952964,19.88,2088.3,2087.5,1.20050822]
[1771080953266,21.08874491,2088.3,2087.5,1.20050822]
[1771080953858,1.20874491,2088.2,2087.5,1.20050822]
[1771080954664,1.20874491,2088.5,2087.7,1.20050822]
[1771080954868,1.20874491,2088.5,2087.6,0.23959]
[1771080955864,1.20874491,2088.5,2087.6,1.44009822]
[1771080956167,1.20874491,2088.3,2087.6,1.44009822]
[1771080957266,21.08874491,2088.5,2087.6,1.44009822]
[1771080957969,19.88,2088.5,2087.6,1.44009822]
[1771080958368,40.8,2088.6,2087.6,1.44009822]
[1771080958569,42.00874491,2088.6,2087.6,1.44009822]
[1771080958767,1.20874491,2088.5,2087.6,1.44009822]
[1771080959365,1.20874491,2088.5,2087.6,0.23959]
[1771080959571,1.20874491,2088.5,2087.6,1.44009822]
[1771080959969,19.879,2088.4,2087.6,1.44009822]
[1771080960273,1.20874491,2088.3,2087.6,1.44009822]
[1771080960775,1.20874491,2088.4,2087.6,1.44009822]
[1771080961074,1.20874491,2088.3,2087.6,1.44009822]
[1771080961569,21.08774491,2088.3,2087.6,1.44009822]
[1771080961968,1.20874491,2088.3,2087.6,1.44009822]
[1771080962270,1.21148497,2088.2,2087.6,1.44009822]
[1771080962774,1.21148497,2088.2,2087.4,1.18696561]
[1771080964875,1.21148497,2088.2,2087.0,1.42661561]
[1771080965076,1.21148497,2088.0,2086.8,1.19173687]
[1771080965277,1.21148497,2087.8,2086.8,1.19173687]
[1771080965783,1.21148497,2087.6,2086.8,1.19173687]
[1771080965978,10.034,2087.5,2086.8,1.19173687]
[1771080966178,11.24548497,2087.5,2086.8,1.19173687]
[1771080966383,1.21148497,2087.4,2086.8,1.19173687]
[1771080966582,1.21148497,2087.3,2086.8,1.19173687]
[1771080967478,1.21148497,2087.3,2086.8,0.00477126]
[1771080967680,1.21148497,2087.3,2086.6,1.18696561]
[1771080968782,1.21148497,2087.2,2086.6,1.19199921]
[1771080969379,21.09148497,2087.3,2086.6,1.19199921]
[1771080969784,60.681,2087.4,2086.8,1.18696561]
[1771080970390,0.00383721,2087.6,2087.0,1.18696561]
[1771080970587,19.88483721,2087.6,2087.0,1.18696561]
[1771080970786,21.09632218,2087.6,2087.0,1.18696561]
[1771080970984,1.21148497,2087.5,2087.0,1.18696561]
[1771080971685,21.09632218,2087.6,2087.2,1.18696561]
[1771080972193,19.88483721,2087.6,2087.2,1.18696561]
[1771080972583,0.00383721,2087.6,2087.2,1.18696561]
[1771080973583,1.21532218,2087.6,2086.8,1.18696561]
[1771080973784,1.21532218,2087.6,2086.6,1.43169921]
[1771080973988,1.21148497,2087.4,2086.6,1.43169921]
[1771080975595,1.21148497,2087.4,2086.6,0.2447336]
[1771080976395,1.21148497,2087.4,2086.6,0.0050336]
[1771080977691,1.21148497,2087.4,2086.1,1.18696561]
[1771080978598,1.21148497,2087.4,2086.1,1.19317054]
[1771080979395,1.21148497,2087.2,2086.1,1.19317054]
[1771080979598,1.21148497,2087.0,2086.1,1.19317054]
[1771080982295,1.21148497,2087.0,2086.1,0.00620493]
[1771080983093,1.21148497,2087.0,2085.7,1.18696561]
[1771080984000,1.21148497,2087.0,2085.7,1.19083175]
[1771080984397,1.21148497,2086.8,2085.7,1.19083175]
[1771080984799,1.21148497,2086.6,2085.7,1.19083175]
[1771080995801,1.21148497,2086.6,2085.7,0.00386614]
[1771080996207,1.09670608,2086.4,2085.7,0.00386614]
[1771080998406,1.09670608,2086.4,2085.7,1.10544271]
[1771080999407,20.99070608,2086.3,2085.7,1.10544271]
[1771080999702,1.09670608,2086.2,2085.7,1.10544271]
[1771081001009,1.09670608,2086.2,2085.7,0.00386614]
[1771081001206,1.08398307,2086.1,2085.7,0.00386614]
[1771081001505,1.08885737,2086.1,2085.6,1.07603902]
[1771081001706,1.08398307,2086.0,2085.6,1.07603902]
[1771081002204,1.08398307,2086.0,2085.5,0.96066193]
[1771081002405,1.08398307,2086.0,2085.5,0.96466695]
[1771081004809,1.08398307,2086.0,2085.5,1.03347]
[1771081006411,0.0048743,2086.1,2085.5,1.03347]
[1771081007111,1.08885737,2086.1,2085.5,1.03347]
[1771081008916,1.08885737,2086.1,2085.5,0.00400502]
[1771081010114,1.08885737,2086.1,2085.5,1.01629867]
[1771081011409,20.98485737,2086.1,2085.5,1.01629867]
[1771081012020,20.98485737,2086.1,2085.7,1.00645211]
[1771081012316,1.08398307,2086.3,2085.7,1.00645211]
[1771081012613,1.08398307,2086.3,2085.6,0.23982]
[1771081012614,1.08398307,2086.5,2085.9,1.00418484]
[1771081012814,11.26998307,2086.7,2085.9,1.00418484]
[1771081013015,1.08398307,2086.6,2085.9,1.00418484]
[1771081013421,1.08952289,2086.6,2085.9,1.00418484]
[1771081013710,1.08398307,2086.8,2086.3,1.00079743]
[1771081014711,1.08765983,2086.8,2086.3,1.00079743]
[1771081015311,1.08765983,2086.8,2085.7,0.99918922]
[1771081016016,1.08765983,2086.8,2085.6,1.23764154]
[1771081018213,1.08398307,2086.6,2085.6,0.23981]
[1771081018519,1.08398307,2086.6,2085.5,0.00400502]
[1771081019114,1.08398307,2086.6,2085.5,1.03355459]
[1771081021522,1.18426817,2086.4,2085.5,1.03355459]
[1771081021722,1.18426817,2086.2,2085.5,1.03355459]
[1771081023022,1.18426817,2086.7,2085.5,1.03355459]
[1771081023222,12.03226817,2086.6,2085.5,1.27338459]
[1771081023416,1.18426817,2086.5,2085.5,1.27338459]
[1771081024927,0.00367676,2086.8,2085.8,1.01876984]
[1771081024928,5.798,2086.7,2085.8,1.01876984]
[1771081025229,0.00367676,2086.8,2085.8,1.01876984]
[1771081025424,0.00367676,2086.8,2086.2,1.01876984]
[1771081025822,40.8,2087.1,2086.2,1.01876984]
[1771081026934,40.80467158,2087.1,2086.2,1.01876984]
[1771081028832,41.98893975,2087.1,2086.2,1.01876984]
[1771081029527,41.98893975,2087.1,2086.4,1.00954887]
[1771081031529,61.88293975,2087.1,2086.4,1.00954887]
[1771081032230,1.18426817,2087.0,2086.4,1.00954887]
[1771081035228,19.89767158,2087.1,2086.4,1.00954887]
[1771081035532,21.08193975,2087.1,2086.4,1.00954887]
[1771081037031,21.08093975,2087.1,2086.6,1.00396416]
[1771081037333,1.18426817,2087.0,2086.6,1.00396416]
[1771081037831,0.00467158,2087.1,2086.6,1.00396416]
[1771081038333,1.18893975,2087.1,2086.6,1.00396416]
[1771081038733,0.00467158,2087.1,2086.6,1.00396416]
[1771081038928,1.18893975,2087.1,2086.6,1.00396416]
[1771081039136,1.18893975,2087.1,2086.5,1.2413114]
[1771081039933,0.00467158,2087.1,2086.5,1.2413114]